{"text_format":"1","workbook":"xlsx","n_sheets":9,"sheets":["Blodtryksskema","Dine Data","Dine_Data","Tomt_Blodtryksskema","Setup","Patientvejledning","Ark4","T","ToDo"],"not_rendered":{"charts":0,"images":17,"macros":1,"external_links":1,"defined_names":7,"comments":1,"pivot_tables":0},"unopened":[],"bounds":{"document_bytes":16777216,"sheet_cells":100000,"rows_first":2000,"rows_last":500,"rows_between":2000,"halvings":0,"cell_chars":16384,"cell_head_chars":4096},"cells_cut":0,"cells_raw":0,"read":"whole","date_system":"1900"}

{"sheet":"Blodtryksskema","index":0,"n_rows":47,"n_cols":11,"rows_kept":47,"cut":false,"hidden":false,"merged":[[36,1,36,2],[40,1,40,2],[44,1,44,2],[19,0,19,1],[20,0,20,1],[21,0,21,1],[18,8,18,9],[19,8,19,9],[20,8,20,9],[21,8,21,9],[18,3,18,4],[19,3,19,4],[20,3,20,4],[21,3,21,4],[27,8,27,9],[29,0,29,1],[29,2,29,5],[29,6,29,9],[23,0,23,1],[23,2,23,5],[23,6,23,9],[24,8,24,9],[25,0,25,1],[25,8,25,9],[24,3,24,4],[25,3,25,4],[26,3,26,4],[27,3,27,4],[17,10,18,10],[4,3,4,5],[5,3,5,5],[33,0,33,1],[33,8,33,9],[33,3,33,4],[30,8,30,9],[31,0,31,1],[31,8,31,9],[32,0,32,1],[32,8,32,9],[31,3,31,4],[32,3,32,4],[26,0,26,1],[26,8,26,9],[27,0,27,1],[34,7,34,10],[30,3,30,4],[7,4,7,10],[8,4,8,10],[9,4,9,10],[11,4,11,10],[10,4,10,10],[29,10,30,10],[23,10,24,10],[14,0,14,7],[15,0,15,7],[14,9,14,10],[15,9,15,10],[17,0,17,1],[17,2,17,5],[17,6,17,9]]}
[]
[]
[]
[]
[null,null,null,"Skru ned"]
[null,null,null,"For blodtrykket"]
[]
[null,null,null,"•","Blodtrykket måles 2 gange om dagen."]
[null,null,null,"•","Blodtrykket skal måles i siddende stilling efter 5 min. Hvile."]
[null,null,null,"•","Gentag målingen 3 gange i træk, hver gang du måler blodtrykket"]
[null,null,null,null,"Mellem målingerne skal du hvile i en stol med ryglæn i 5 min."]
[null,null,null,"•","Dette gentages 3 dage i træk."]
[]
[]
["NAVN",null,null,null,null,null,null,null,null,"CPR-NR."]
[{"$f":"'Dine Data'!C3&\" \"&'Dine Data'!J3","v":"Dit navn Efternavn"},null,null,null,null,null,null,null,null,{"$f":"'Dine Data'!J10","v":"123456-7890"}]
[]
["Dag 1",null,"MÅLING INDEN\nMORGENMADEN",null,null,null,"MÅLING INDEN\nAFTENSMADEN",null,null,null,"GENNEMSNIT"]
["Dato:",null,1,2,null,3,4,5,6]
["DET HØJE\n(SYSTOLISK)",null,null,null,null,null,null,null,null,null,{"$f":"IFERROR(AVERAGE(C20:J20),\"\")","v":""}]
["DET LAVE\n(DIATOLISK)",null,null,null,null,null,null,null,null,null,{"$f":"IFERROR(AVERAGE(C21:J21),\"\")","v":""}]
["PULS",null,null,null,null,null,null,null,null,null,""]
[]
["Dag 2",null,"MÅLING INDEN\nMORGENMADEN",null,null,null,"MÅLING INDEN\nAFTENSMADEN",null,null,null,"GENNEMSNIT"]
["Dato:",{"$f":"IF($B$19<>\"\",$B$19+1,\"\")","v":""},1,2,null,3,4,5,6]
["DET HØJE\n(SYSTOLISK)",null,null,null,null,null,null,null,null,null,{"$f":"IFERROR(AVERAGE(C26:J26),\"\")","v":""}]
["DET LAVE\n(DIATOLISK)",null,null,null,null,null,null,null,null,null,""]
["PULS",null,null,null,null,null,null,null,null,null,{"$f":"IFERROR(AVERAGE(C28:J28),\"\")","v":""}]
[]
["Dag 3",null,"MÅLING INDEN\nMORGENMADEN",null,null,null,"MÅLING INDEN\nAFTENSMADEN",null,null,null,"GENNEMSNIT"]
["Dato:",{"$f":"IF($B$19<>\"\",$B$19+2,\"\")","v":""},1,2,null,3,4,5,6]
["DET HØJE\n(SYSTOLISK)",null,null,null,null,null,null,null,null,null,{"$f":"IFERROR(AVERAGE(C32:J32),\"\")","v":""}]
["DET LAVE\n(DIATOLISK)",null,null,null,null,null,null,null,null,null,""]
["PULS",null,null,null,null,null,null,null,null,null,""]
[null,null,null,null,null,null,null,{"$f":"T!C5","v":"Version 0.00.30 / Bjarne Hansen - © "}]
[]
[null,"DET HØJE (SYSTOLISK)",null,"-","Gennemsnit alle dage",null,null,{"$f":"IFERROR(ROUNDDOWN(AVERAGE(C26,D26,F26,G26,H26,I26,C32,D32,F32,G32,H32,I32),0),\"\")","v":""},null,"mm Hg","< 135 mm Hg"]
[null,"- Gennensnit morgen",null,null,null,null,null,{"$f":"IFERROR(ROUNDDOWN(AVERAGE(C26,D26,F26,C32,D32,F32),0),\"\")","v":""},null,"mm Hg"]
[null,"- Gennemsnit aften",null,null,null,null,null,{"$f":"IFERROR(ROUNDDOWN(AVERAGE(G26,H26,I26,G32,H32,I32),0),\"\")","v":""},null,"mm Hg"]
[]
[null,"DET LAVE (DIATOLISK)",null,"-","Gennemsnit alle dage",null,null,{"$f":"IFERROR(ROUNDDOWN(AVERAGE(C27,D27,F27,G27,H27,I27,C33,D33,F33,G33,H33,I33),0),\"\")","v":""},null,"mm Hg","< 85 mm Hg"]
[null,"- Gennensnit morgen",null,null,null,null,null,{"$f":"IFERROR(ROUNDDOWN(AVERAGE(C27,D27,F27,C33,D33,F33),0),\"\")","v":""},null,"mm Hg"]
[null,"- Gennemsnit aften",null,null,null,null,null,{"$f":"IFERROR(ROUNDDOWN(AVERAGE(G27,H27,I27,G33,H33,I33),0),\"\")","v":""},null,"mm Hg"]
[]
[null,"PULS",null,"-","Gennemsnit alle dage",null,null,{"$f":"IFERROR(ROUNDDOWN(AVERAGE(C28,D28,F28,G28,H28,I28,C34,D34,F34,G34,H34,I34),0),\"\")","v":""},null,"pr. minut","60-80 pr min"]
[null,"- Gennensnit morgen",null,null,null,null,null,{"$f":"IFERROR(ROUNDDOWN(AVERAGE(C28,D28,F28,C34,D34,F34),0),\"\")","v":""},null,"pr. minut"]
[null,"- Gennemsnit aften",null,null,null,null,null,{"$f":"IFERROR(ROUNDDOWN(AVERAGE(G28,H28,I28,G34,H34,I34),0),\"\")","v":""},null,"pr. minut"]

{"sheet":"Dine Data","index":1,"n_rows":25,"n_cols":16,"rows_kept":25,"cut":false,"hidden":false,"merged":[[2,2,2,5],[2,9,2,17],[4,2,4,5],[4,7,4,8],[4,9,4,11],[4,15,4,17],[24,13,24,14],[0,1,0,13],[0,15,0,20],[24,15,24,20],[6,2,6,5],[6,9,6,11],[6,15,6,17],[21,2,21,3],[21,7,21,8],[21,9,21,11],[21,13,21,14],[21,15,21,20],[8,9,8,10],[9,9,9,10],[24,2,24,7],[24,10,24,11]]}
[null,"Mine Data",null,null,null,null,null,null,null,null,null,null,null,null,null,{"$f":"T!C5","v":"Version 0.00.30 / Bjarne Hansen - © "}]
[]
[null,"Fornavn","Dit navn",null,null,null,null,"Efternavn ",null,"Efternavn"]
[]
[null,"Adresse","Adresse",null,null,null,null,"Postnr.",null,"Postnr",null,null,null,null,"Stat/Provins "]
[]
[null,null,null,null,null,null,null,null,"By ","By",null,null,null,null,"Land","Danmark"]
[]
[null,"Fødselsdato ","dag","måned ","år"]
[null,null,12,34,56,"7890",null,null,null,{"$f":"IF(F10=\"\",C10&\"\"&D10&\"\"&E10,C10&\"\"&D10&\"\"&RIGHT(E10,2)&\"-\"&F10)","v":"123456-7890"}]
[]
[null,"Køn","Mand",null,"Alder : ",{"$f":"DATEDIF(DATE(E10,D10,C10),TODAY(),\"y\")","v":65},null," År."]
[]
[null,"Indtastes ved 1. registering"]
[null,"højde",null,"m.","Fedt % : ",{"$f":"IFERROR(IF(C12=\"mand\",1.34*C19-12.47,1.37*C19-3.47),\"\")","v":""},null,"%"]
[]
[null,"vægt ",null,"Kg."]
[]
[null,"BMI ",{"$f":"IFERROR(C17/(C15*C15),\"\")","v":""}]
[]
[]
[null,"Telefon privat ",null,null,null,null,null,"Mobil  ",null,null,null,null,null,"Mail : ",null,"din mail"]
[]
[]
[null,"Lægens navn ","Dit lægehus",null,null,null,null,null,null,"Telefon ",null,null,null,"Mail : "]

{"sheet":"Dine_Data","index":2,"n_rows":6,"n_cols":6,"rows_kept":6,"cut":false,"hidden":true,"merged":[]}
[null,"Dine Data "]
[]
[null,null,null,null,"Navn :",{"$f":"'Dine Data'!C3&\" \"&'Dine Data'!J3","v":"Dit navn Efternavn"}]
[null,null,null,null,"Cpr-Nr :","xxxxxx-xxxx"]
[]
[null,null,null,null,"Din Læge/Lægehus : ","Dit lægehus"]

{"sheet":"Tomt_Blodtryksskema","index":3,"n_rows":32,"n_cols":11,"rows_kept":32,"cut":false,"hidden":false,"merged":[[30,0,30,1],[30,3,30,4],[30,8,30,9],[28,0,28,1],[28,3,28,4],[28,8,28,9],[29,0,29,1],[29,3,29,4],[29,8,29,9],[26,0,26,1],[26,2,26,5],[26,6,26,9],[26,10,27,10],[27,3,27,4],[27,8,27,9],[23,0,23,1],[23,3,23,4],[23,8,23,9],[24,0,24,1],[24,3,24,4],[24,8,24,9],[20,10,21,10],[21,3,21,4],[21,8,21,9],[22,0,22,1],[22,3,22,4],[22,8,22,9],[18,0,18,1],[18,3,18,4],[18,8,18,9],[20,0,20,1],[20,2,20,5],[20,6,20,9],[16,0,16,1],[16,3,16,4],[16,8,16,9],[17,0,17,1],[17,3,17,4],[17,8,17,9],[8,4,8,10],[11,0,11,7],[11,9,11,10],[12,0,12,7],[12,9,12,10],[14,0,14,1],[14,2,14,5],[14,6,14,9],[14,10,15,10],[15,3,15,4],[15,8,15,9],[7,4,7,10],[1,3,1,5],[2,3,2,5],[4,4,4,10],[5,4,5,10],[6,4,6,10]]}
[]
[null,null,null,"Skru ned"]
[null,null,null,"For blodtrykket"]
[]
[null,null,null,"•","Blodtrykket måles 2 gange om dagen."]
[null,null,null,"•","Blodtrykket skal måles i siddende stilling efter 5 min. Hvile."]
[null,null,null,"•","Gentag målingen 3 gange i træk, hver gang du måler blodtrykket"]
[null,null,null,null,"Mellem målingerne skal du hvile i en stol med ryglæn i 5 min."]
[null,null,null,"•","Dette gentages 3 dage i træk."]
[]
[]
["NAVN",null,null,null,null,null,null,null,null,"CPR-NR."]
[]
[]
["Dag 1",null,"MÅLING INDEN\nMORGENMADEN",null,null,null,"MÅLING INDEN\nAFTENSMADEN",null,null,null,"GENNEMSNIT"]
["Dato:",null,1,2,null,3,4,5,6]
["DET HØJE\n(SYSTOLISK)",null,null,null,null,null,null,null,null,null,{"$f":"IFERROR(AVERAGE(C17:J17),\"\")","v":""}]
["DET LAVE\n(DIATOLISK)",null,null,null,null,null,null,null,null,null,{"$f":"IFERROR(AVERAGE(C18:J18),\"\")","v":""}]
["PULS",null,null,null,null,null,null,null,null,null,""]
[]
["Dag 2",null,"MÅLING INDEN\nMORGENMADEN",null,null,null,"MÅLING INDEN\nAFTENSMADEN",null,null,null,"GENNEMSNIT"]
["Dato:",{"$f":"IF($B$16<>\"\",$B$16+1,\"\")","v":""},1,2,null,3,4,5,6]
["DET HØJE\n(SYSTOLISK)",null,null,null,null,null,null,null,null,null,{"$f":"IFERROR(AVERAGE(C23:J23),\"\")","v":""}]
["DET LAVE\n(DIATOLISK)",null,null,null,null,null,null,null,null,null,""]
["PULS",null,null,null,null,null,null,null,null,null,""]
[]
["Dag 3",null,"MÅLING INDEN\nMORGENMADEN",null,null,null,"MÅLING INDEN\nAFTENSMADEN",null,null,null,"GENNEMSNIT"]
["Dato:",{"$f":"IF($B$16<>\"\",$B$16+2,\"\")","v":""},1,2,null,3,4,5,6]
["DET HØJE\n(SYSTOLISK)",null,null,null,null,null,null,null,null,null,{"$f":"IFERROR(AVERAGE(C29:J29),\"\")","v":""}]
["DET LAVE\n(DIATOLISK)",null,null,null,null,null,null,null,null,null,""]
["PULS",null,null,null,null,null,null,null,null,null,""]
[null,null,null,null,null,null,null,null,null,null,{"$f":"T!C5","v":"Version 0.00.30 / Bjarne Hansen - © "}]

{"sheet":"Setup","index":4,"n_rows":12,"n_cols":3,"rows_kept":12,"cut":false,"hidden":false,"merged":[[8,0,9,0]]}
["Til","dinlæges@mail.dk","B1"]
["Cc",null,"B2"]
["Bcc",null,"B3"]
["Emne linjen",{"$f":"\"BlodtryksSkema - \"&Dine_Data!F3&\" - d. \"&TEXT(Blodtryksskema!B19,\"ddmmåååå\")","v":"BlodtryksSkema - Dit navn Efternavn - d. 00011900"},"B4"]
["Lagrings Mappe sti","E:\\Mine Regneark\\Helbred\\Blodtryk\\målinger","B5"]
["PDF gemme navn",{"$f":"IF(Blodtryksskema!B19=\"\",\"\",Dine_Data!F3&\" - \"&\"Blodtryksmåling d. \"&TEXT(Blodtryksskema!B19,\"ddmmåååå\"))","v":""},"B6"]
[null,null,"B7"]
[null,null,"B8"]
[]
[]
[]
["Mail tekst","Hej \r\n\r\nJeg sender hermed mit Blodtryksskema.\r\n\r\nMed venlig hilsen\r\n\r\nXxxxxxx Xxxxxx\r\nTlf: +45 xx xx xx xx\r\n\r\n\r\n","B12"]

{"sheet":"Patientvejledning","index":5,"n_rows":42,"n_cols":7,"rows_kept":42,"cut":false,"hidden":false,"merged":[]}
[]
["Patientvejledning"]
[]
["Din læge har bedt dig om at måle dit blodtryk",null,null,null,null,null,"• Du skal placere armen på bordet med håndfladen"]
["i dine vante omgivelser.",null,null,null,null,null,"opad med manchetten på højde med hjertet."]
[null,null,null,null,null,null,"Du kan eventuelt lægge en pude under armen"]
["Denne vejledning viser, hvordan du skal måle"]
["dit blodtryk hjemme."]
[]
["For at få en brugbar blodtryksmåling er det vigtig"]
["at følge og overholde nedenstående vejledning."]
[]
["Du må ikke ryge i de sidste 30 minutter før du måler",null,null,null,null,null,"• Du skal tænde for apparatet som anvist af lægen"]
["blodtrykket.",null,null,null,null,null,"• Du skal hvile på stolen i 5 minutter og have lejlighed"]
[null,null,null,null,null,null,"til at sidde uforstyrret inden målingen"]
["Du må ikke måle blodtrykket på andre i den periode,",null,null,null,null,null,"• Du må ikke tale eller bevæge dig under målingen"]
["hvor du har apparatet hjemme.",null,null,null,null,null,"• Du skal trykke på startknappen som anvist af lægen"]
[null,null,null,null,null,null,"• Apparatet foretager selv målingen"]
["Før blodtryksmålingen",null,null,null,null,null,"Efter blodtryksmålingen"]
[]
["• Du skal måle dit blodtryk 2 gange om dagen"]
["• Du skal måle blodtrykket lige før morgenmaden"]
["og lige før aftensmaden"]
["• Du skal måle 3 blodtryk, hver gang du måler"]
["blodtrykket",null,null,null,null,null,"• Når blodtryksmålingen er færdig, står der tre tal"]
["• Du skal måle blodtrykket 3 dage i træk",null,null,null,null,null,"på skærmen. Det høje blodtryk (systolisk) og det"]
[null,null,null,null,null,null,"lave blodtryk (diastolisk) samt pulsen (antal pulsslag"]
["Selve blodtryksmålingen",null,null,null,null,null,"per minut). De tre tal skal noteres på det skema,"]
[null,null,null,null,null,null,"der er bag på dette ark"]
["• Du skal måle blodtrykket på den arm din læge har",null,null,null,null,null,"• Du skal måle 3 gange og notere alle 3 blodtryk"]
["anvist dig",null,null,null,null,null,"og pulsen i skemaet"]
["• Du skal blotte den arm, du skal måle blodtryk på,",null,null,null,null,null,"• Når du har målt 3 gange og er færdig med at"]
["og der må ikke være tøj, der strammer på armen",null,null,null,null,null,"bruge apparatet, vil det slukke automatisk efter"]
["• Du skal sidde bekvemt tilbagelænet med rygstøtte i",null,null,null,null,null,"et par minutter"]
["en stol uden korslagte ben ved siden af et bord",null,null,null,null,null,"• Apparatet henstilles forsvarligt indtil næste måling"]
[]
["• Du skal anbringe manchetten på overarmen et par"]
["centimeter over albuebøjningen med luftslangen"]
["i midten og nedad"]
["• Manchetten må ikke stramme. En finger skal"]
["ubesværet kunne være mellem manchet og"]
["overarmen"]

{"sheet":"Ark4","index":6,"n_rows":9,"n_cols":5,"rows_kept":9,"cut":false,"hidden":true,"merged":[[8,4,8,10],[1,3,1,5],[2,3,2,5],[4,4,4,10],[5,4,5,10],[6,4,6,10],[7,4,7,10]]}
[]
[null,null,null,"Skru ned"]
[null,null,null,"For blodtrykket"]
[]
[null,null,null,"•","Blodtrykket måles 2 gange om dagen."]
[null,null,null,"•","Blodtrykket skal måles i siddende stilling efter 5 min. Hvile."]
[null,null,null,"•","Gentag målingen 3 gange i træk, hver gang du måler blodtrykket"]
[null,null,null,null,"Mellem målingerne skal du hvile i en stol med ryglæn i 5 min."]
[null,null,null,"•","Dette gentages 3 dage i træk."]

{"sheet":"T","index":7,"n_rows":5,"n_cols":12,"rows_kept":5,"cut":false,"hidden":false,"merged":[[1,7,1,8],[1,9,1,10]]}
[]
[null,"Version : ","Version 0.00.30",null,"Mand",null,"Normal","Grad 1",null,"Grad 2",null,"Grad 3"]
[null,"Udvikler :","Bjarne Hansen",null,"Kvinde",null,135,135,154,155,174,175]
[null,"Firma : ",null,null,null,null,85,85,94,95,104,105]
[null,null,{"$f":"C2&\" / \"&C3&\" - © \"&C4","v":"Version 0.00.30 / Bjarne Hansen - © "}]

{"sheet":"ToDo","index":8,"n_rows":16,"n_cols":3,"rows_kept":16,"cut":false,"hidden":false,"merged":[[0,0,0,2]]}
["To Do liste"]
[1,"Gemme som PDF","ok"]
[2,"Gemme som PDF og mail arket vedhæftet","ok"]
[3,"navn på PDF - \"Blogtryksmåling - Bjarne Hansen d. 03112017\"","ok"]
[4,"Samme menu som på ibs timeseddel…."]
[5,"Mail modtager","ok"]
[6,"Lagringsmappe","ok"]
[7,"sende mail med ark vedhæftet"]
[8,"om ark"]
[9,"Datopicker"]
[10]
[11]
[12]
[13]
[14]
[15]